bitfinex/quotes_SOLUSD_20241222
["timestamp","ask_amount","ask_price","bid_price","bid_amount"]
[1734852312727,20.0,183.12,183.04,18.0671872]
[1734852312924,20.0,183.12,183.05,18.0671872]
[1734852313416,20.0,183.12,183.06,18.0671872]
[1734852313604,0.82198641,183.14,183.06,18.0671872]
[1734852314929,20.0,183.12,183.06,18.0671872]
[1734852316134,0.82198641,183.11,183.0,0.81919388]
[1734852316302,0.82198641,183.11,183.01,18.0671872]
[1734852317017,0.82198641,183.11,183.02,18.0671872]
[1734852317933,0.82198641,183.11,183.03,18.0671872]
[1734852319235,20.0,183.12,183.06,18.0671872]
[1734852322634,6.3779,183.15,183.07,18.0671872]
[1734852322817,6.3779,183.15,183.08,18.0671872]
[1734852324214,6.3779,183.15,183.09,18.0671872]
[1734852326738,6.3779,183.15,183.08,18.0671872]
[1734852329243,0.82198641,183.14,183.04,1.6232]
[1734852329413,20.0,183.12,183.02,14.47866768]
[1734852329617,0.82198641,183.11,183.03,18.0671872]
[1734852329926,0.82198641,183.11,182.99,15.285]
[1734852330128,0.82198641,183.11,183.03,18.0671872]
[1734852332541,0.82198641,183.11,183.02,18.0671872]
[1734852332722,20.0,183.07,183.0,18.0671872]
[1734852332913,0.82198641,183.06,182.99,18.0671872]
[1734852334428,20.0,183.07,183.0,18.0671872]
[1734852334836,0.82198641,183.06,183.0,18.0671872]
[1734852335340,0.82198641,183.06,182.99,18.0671872]
[1734852336522,0.82198641,183.06,182.97,18.0671872]
[1734852337055,0.82198641,183.06,182.98,18.0671872]
[1734852338243,0.82198641,183.06,182.97,18.0671872]
[1734852341745,0.82198641,183.06,182.98,18.0671872]
[1734852342623,6.1202,183.1,183.01,18.0671872]
[1734852342938,0.82198641,183.09,183.02,18.0671872]
[1734852343356,0.82198641,183.09,183.01,18.0671872]
[1734852344137,20.0,183.07,183.01,18.0671872]
[1734852347050,20.0,183.07,183.0,18.0671872]
[1734852348047,20.0,183.07,183.0,11.29511153]
[1734852348846,20.0,183.07,183.01,11.29511153]
[1734852351723,0.82198641,183.09,183.02,35.07199553]
[1734852351928,6.88448641,183.14,183.07,11.29511153]
[1734852352237,6.0625,183.14,183.07,11.29511153]
[1734852352437,0.82198641,183.13,183.07,11.29511153]
[1734852352632,6.0625,183.14,183.07,11.29511153]
[1734852353234,6.0625,183.14,183.03,13.6589]
[1734852353235,0.82198641,183.13,183.06,11.29511153]
[1734852353426,0.82198641,183.13,183.05,11.29511153]
[1734852353867,20.0,183.11,183.04,11.29511153]
[1734852354169,0.82198641,183.1,183.04,11.29511153]
[1734852354447,0.82198641,183.1,183.03,11.29511153]
[1734852354953,20.0,183.11,183.04,11.29511153]
[1734852355327,20.0,183.11,183.05,11.29511153]
[1734852356257,20.0,183.11,183.05,18.06283214]
[1734852356751,0.82198641,183.1,183.03,18.06283214]
[1734852358365,0.82198641,183.1,183.0,14.4802323]
[1734852358366,0.82198641,183.1,183.0,18.06283214]
[1734852358561,0.82198641,183.1,183.01,18.06283214]
[1734852359228,0.82198641,183.1,183.02,18.06283214]
[1734852360571,0.82198641,183.1,183.04,18.06283214]
[1734852360866,0.82198641,183.13,183.07,18.06283214]
[1734852361036,6.88448641,183.14,183.08,18.06283214]
[1734852361542,6.88448641,183.14,183.07,18.06283214]
[1734852361748,6.0625,183.14,183.07,18.06283214]
[1734852364160,6.0256,183.18,183.09,18.06283214]
[1734852364455,0.82198641,183.17,183.1,18.06283214]
[1734852364778,8.47028155,183.2,183.14,18.06283214]
[1734852364955,34.70311262,183.21,183.14,18.06283214]
[1734852364956,9.29226796,183.21,183.14,18.06283214]
[1734852365463,9.29226796,183.21,183.09,18.06283214]
[1734852365846,9.29226796,183.21,183.1,18.06283214]
[1734852366042,16.9405631,183.22,183.14,18.06283214]
[1734852366043,0.82198641,183.22,183.14,18.06283214]
[1734852366251,0.82198641,183.2,183.11,18.06283214]
[1734852366458,0.82198641,183.2,183.09,18.06283214]
[1734852366633,0.82198641,183.22,183.11,18.06283214]
[1734852366963,0.82198641,183.22,183.14,18.06283214]
[1734852367138,6.84758641,183.23,183.15,18.06283214]
[1734852368166,20.0,183.2,183.15,18.06283214]
[1734852368343,6.0256,183.23,183.16,18.06283214]
[1734852368542,6.0256,183.23,183.17,18.06283214]
[1734852368737,0.82198641,183.27,183.18,18.06283214]
[1734852368947,0.82198641,183.27,183.16,18.06283214]
[1734852369241,0.82198641,183.27,183.15,18.06283214]
[1734852369860,20.0,183.25,183.13,18.06283214]
[1734852370040,0.82198641,183.24,183.13,18.06283214]
[1734852370660,0.82198641,183.24,183.14,18.06283214]
[1734852372464,20.0,183.2,183.06,1.6641]
[1734852372655,0.82198641,183.19,183.07,18.06283214]
[1734852373165,0.82198641,183.19,183.08,18.06283214]
[1734852375466,0.82198641,183.19,183.1,18.06283214]
[1734852377574,0.82198641,183.19,183.09,18.06283214]
[1734852381058,20.0,183.15,183.07,18.06283214]
[1734852381260,0.82198641,183.14,183.07,18.06283214]
[1734852382055,0.82198641,183.14,183.06,18.06283214]
[1734852382371,0.82198641,183.14,183.05,18.06283214]
[1734852382978,0.82198641,183.14,183.06,18.06283214]
[1734852388282,0.82198641,183.14,183.06,11.28810672]
[1734852392082,0.82198641,183.14,183.05,11.28810672]
[1734852392789,0.82198641,183.14,183.06,11.28810672]
[1734852392986,20.0,183.15,183.07,11.28810672]
[1734852393286,0.82198641,183.14,183.07,11.28810672]
[1734852393468,0.82198641,183.14,183.06,12.10728171]
[1734852394585,6.1831,183.18,183.1,11.28810672]
[1734852396086,6.1831,183.18,183.11,11.28810672]
[1734852397894,6.1831,183.18,183.13,11.28810672]
[1734852399091,0.82198641,183.22,183.13,11.28810672]
[1734852399275,20.0,183.2,183.13,11.28810672]
[1734852399466,20.0,183.2,183.14,24.59574435]
[1734852399670,20.0,183.2,183.15,11.28810672]
[1734852399884,0.82198641,183.19,183.13,11.28810672]
[1734852400493,20.0,183.2,183.13,11.28810672]
[1734852400800,0.82198641,183.19,183.12,11.28810672]
[1734852401391,20.0,183.2,183.13,11.28810672]
[1734852401578,20.0,183.2,183.14,11.28810672]
[1734852404374,6.6332,183.23,183.15,11.28810672]
[1734852404577,0.82198641,183.22,183.15,11.28810672]
[1734852406399,0.82198641,183.22,183.14,11.28810672]
[1734852409079,20.0,183.2,183.13,11.28810672]
[1734852409279,0.82198641,183.19,183.12,11.28810672]
[1734852409713,0.82198641,183.19,183.05,6.0621]
[1734852410022,0.82198641,183.19,183.08,11.28810672]
[1734852410587,20.82198641,183.19,183.08,11.28810672]
[1734852410977,20.82198641,183.19,183.09,11.28810672]
[1734852413396,20.82198641,183.19,183.1,35.06499072]
[1734852414111,20.82198641,183.19,183.1,23.776884]
[1734852415899,20.0,183.18,183.1,23.776884]
[1734852416199,0.82198641,183.17,183.1,23.776884]
[1734852416522,20.0,183.18,183.1,35.06499072]
[1734852418617,0.82198641,183.17,183.1,35.06499072]
[1734852418920,20.0,183.18,183.1,35.06499072]
[1734852420119,20.0,183.18,183.11,11.28810672]
[1734852421419,20.82198641,183.2,183.11,11.28810672]
[1734852424716,0.82198641,183.22,183.13,11.28810672]
[1734852424916,0.82198641,183.22,183.15,11.28810672]
[1734852426111,20.0,183.2,183.15,11.28810672]
[1734852427528,6.6332,183.23,183.17,11.28810672]
[1734852427828,6.6332,183.23,183.18,11.28810672]
[1734852429511,20.0,183.26,183.19,23.776884]
[1734852429711,20.0,183.24,183.19,23.776884]
[1734852429913,20.0,183.24,183.18,11.28810672]
[1734852431208,20.0,183.24,183.14,23.776884]
[1734852431411,20.0,183.24,183.17,11.28810672]
[1734852431612,20.0,183.24,183.18,11.28810672]
[1734852432209,0.82198641,183.23,183.15,11.28810672]
[1734852436644,0.82198641,183.23,183.17,11.28810672]
[1734852436847,0.82198641,183.23,183.16,11.28810672]
[1734852441547,0.82198641,183.23,183.15,11.28810672]
[1734852443953,0.82198641,183.23,183.16,11.28810672]
[1734852444148,8.47028155,183.28,183.22,11.28810672]
[1734852444463,8.47028155,183.28,183.27,11.28810672]
[1734852444662,8.47028155,183.28,183.27,35.06499072]
[1734852445252,8.47028155,183.36,183.28,23.776884]
[1734852445445,9.29226796,183.36,183.29,11.28810672]
[1734852445633,8.47028155,183.36,183.3,11.28810672]
[1734852445839,8.47028155,183.36,183.31,11.28810672]
[1734852446448,0.82198641,183.37,183.3,11.28810672]
[1734852446639,20.0,183.35,183.28,11.28810672]
[1734852446840,0.82198641,183.34,183.27,11.28810672]
[1734852447230,0.82198641,183.34,183.25,2.47057894]
[1734852447231,0.82198641,183.34,183.28,11.28810672]
[1734852447444,20.0,183.35,183.29,11.28810672]
[1734852447953,20.0,183.35,183.3,11.28810672]
[1734852449032,0.82198641,183.37,183.3,11.28810672]
[1734852449527,0.82198641,183.37,183.29,11.28810672]
[1734852451249,0.82198641,183.37,183.3,11.28810672]
[1734852451658,0.82198641,183.37,183.29,11.28810672]
[1734852452638,20.0,183.35,183.27,11.28810672]
[1734852452938,0.82198641,183.34,183.26,11.28810672]
[1734852453776,0.82198641,183.34,183.27,11.28810672]
[1734852455174,0.82198641,183.34,183.26,11.28810672]
[1734852455354,20.82198641,183.34,183.23,11.28810672]
[1734852455552,6.4334,183.33,183.23,11.28810672]
[1734852455740,20.0,183.3,183.16,0.81849999]
[1734852455943,0.82198641,183.29,183.18,11.28810672]
[1734852461141,23.00979896,183.29,183.18,11.28810672]
[1734852462062,23.00979896,183.29,183.17,11.28810672]
[1734852462246,20.0,183.28,183.17,11.28810672]
[1734852462448,0.82198641,183.27,183.17,11.28810672]
[1734852462865,0.82198641,183.27,183.18,11.28810672]
[1734852464966,0.82198641,183.27,183.19,11.28810672]
[1734852465168,0.82198641,183.3,183.25,11.28810672]
[1734852465377,0.82198641,183.32,183.25,11.28810672]
[1734852465683,0.82198641,183.32,183.23,23.776884]
[1734852465849,0.82198641,183.32,183.24,11.28810672]
[1734852466272,0.82198641,183.32,183.25,11.28810672]
[1734852466549,20.0,183.3,183.25,11.28810672]
[1734852467264,0.82198641,183.38,183.26,11.28810672]
[1734852468471,0.82198641,183.38,183.27,11.28810672]
[1734852468671,0.82198641,183.38,183.28,11.28810672]
[1734852470775,20.0,183.36,183.29,11.28810672]
[1734852471078,20.0,183.36,183.3,11.28810672]
[1734852472578,20.0,183.36,183.29,11.28810672]
[1734852473070,20.0,183.36,183.26,23.776884]
[1734852473272,0.82198641,183.35,183.26,23.776884]
[1734852473451,0.82198641,183.35,183.28,11.28810672]
[1734852473651,0.82198641,183.35,183.29,11.28810672]
[1734852475663,20.0,183.36,183.29,11.28810672]
[1734852475863,0.82198641,183.35,183.29,11.28810672]
[1734852476263,20.0,183.36,183.29,11.28810672]
[1734852476575,0.82198641,183.35,183.27,0.81820596]
[1734852476875,0.82198641,183.35,183.27,11.28810672]
[1734852478870,0.82198641,183.35,183.26,11.28810672]
[1734852479079,0.82198641,183.35,183.25,11.28810672]
[1734852479657,0.82198641,183.35,183.24,35.06499072]
[1734852480181,0.82198641,183.35,183.25,11.28810672]
[1734852481685,0.82198641,183.35,183.26,11.28810672]
[1734852482991,0.82198641,183.35,183.23,12.89430672]
[1734852483282,0.82198641,183.35,183.24,11.28810672]
[1734852483487,0.82198641,183.35,183.25,11.28810672]
[1734852486272,0.82198641,183.35,183.23,11.28810672]
[1734852486476,20.0,183.31,183.23,11.28810672]
[1734852486682,0.82198641,183.3,183.23,11.28810672]
[1734852487675,0.82198641,183.3,183.24,11.28810672]
[1734852490892,20.0,183.31,183.24,11.28810672]
[1734852491094,0.82198641,183.3,183.24,11.28810672]
[1734852491393,20.0,183.31,183.26,11.28810672]
[1734852491594,20.0,183.31,183.25,11.28810672]
[1734852493514,20.0,183.31,183.26,11.28810672]
[1734852493698,20.0,183.31,183.25,11.28810672]
[1734852495077,0.82198641,183.33,183.24,11.28810672]
[1734852495276,0.82198641,183.33,183.25,11.28810672]
[1734852497600,20.0,183.31,183.25,11.28810672]
[1734852497798,0.82198641,183.3,183.25,11.28810672]
[1734852497975,0.82198641,183.3,183.24,11.28810672]
[1734852499497,20.0,183.31,183.26,11.28810672]
[1734852501506,20.0,183.31,183.23,0.81842416]
[1734852501698,20.0,183.31,183.26,11.28810672]
[1734852503180,20.0,183.31,183.27,11.28810672]
[1734852504308,20.0,183.31,183.26,11.28810672]
[1734852505105,0.82198641,183.3,183.2,11.28810672]
[1734852505605,0.82198641,183.3,183.21,11.28810672]
[1734852508210,0.82198641,183.3,183.22,11.28810672]
[1734852508412,0.82198641,183.3,183.23,11.28810672]
[1734852511107,0.82198641,183.3,183.22,11.28810672]
[1734852511786,0.82198641,183.3,183.23,11.28810672]
[1734852512192,0.82198641,183.3,183.24,11.28810672]
[1734852512594,20.0,183.31,183.25,11.28810672]
[1734852518922,20.0,183.31,183.24,35.06499072]
[1734852519218,20.0,183.31,183.24,23.776884]
[1734852519406,20.0,183.31,183.24,35.06499072]
[1734852519600,20.0,183.31,183.25,11.28810672]
[1734852524331,20.0,183.31,183.24,35.06499072]
[1734852526847,20.0,183.31,183.24,23.776884]
[1734852527022,20.0,183.31,183.24,35.06499072]
[1734852529374,20.0,183.31,183.2,0.81839203]
[1734852529653,0.82198641,183.3,183.23,23.776884]
[1734852529814,0.82198641,183.3,183.22,11.28810672]
[1734852530313,0.82198641,183.3,183.21,11.28810672]
[1734852530629,0.82198641,183.3,183.19,1.589]
[1734852530948,0.82198641,183.3,183.2,11.28810672]
[1734852531334,0.82198641,183.3,183.21,11.28810672]
[1734852531533,20.0,183.29,183.21,11.28810672]
[1734852531733,0.82198641,183.28,183.21,11.28810672]
[1734852532844,20.0,183.29,183.22,11.28810672]
[1734852533052,20.0,183.29,183.23,11.28810672]
[1734852533627,0.82198641,183.28,183.22,35.06499072]
[1734852534446,0.82198641,183.3,183.22,35.06499072]
[1734852534649,20.82198641,183.3,183.22,35.06499072]
[1734852536642,0.82198641,183.3,183.22,35.06499072]
[1734852537763,0.82198641,183.3,183.22,23.776884]
[1734852538056,0.82198641,183.3,183.23,11.28810672]
[1734852540830,0.82198641,183.3,183.22,35.06499072]
[1734852555868,0.82198641,183.33,183.26,11.28810672]
[1734852556665,0.82198641,183.33,183.27,11.28810672]
[1734852557343,6.0148,183.34,183.27,11.28810672]
[1734852558147,6.0148,183.34,183.28,11.28810672]
[1734852558843,0.82198641,183.36,183.28,11.28810672]
[1734852559043,0.82198641,183.36,183.26,12.90640672]
[1734852559347,6.4171,183.35,183.24,11.28810672]
[1734852559561,0.82198641,183.34,183.23,11.28810672]
[1734852559766,0.82198641,183.34,183.24,11.28810672]
[1734852560155,20.0,183.32,183.24,11.28810672]
[1734852560340,0.82198641,183.31,183.24,11.28810672]
[1734852562562,0.82198641,183.31,183.23,11.28810672]
[1734852564169,0.82198641,183.31,183.24,11.28810672]
[1734852564568,20.0,183.32,183.24,11.28810672]
[1734852564867,20.0,183.32,183.25,11.28810672]
[1734852565068,0.82198641,183.31,183.25,11.28810672]
[1734852565753,20.0,183.32,183.25,11.28810672]
[1734852567076,20.0,183.32,183.24,0.81835929]
[1734852567376,20.0,183.32,183.23,23.776884]
[1734852567377,0.82198641,183.31,183.23,23.776884]
[1734852567565,0.82198641,183.31,183.23,35.06499072]
[1734852569156,6.4171,183.3,183.18,1.6183]
[1734852569473,0.82198641,183.29,183.19,11.28810672]
[1734852569979,0.82198641,183.29,183.2,11.28810672]
[1734852570355,0.82198641,183.29,183.21,11.28810672]
[1734852571077,0.82198641,183.29,183.22,11.28810672]
[1734852571371,0.82198641,183.29,183.23,11.28810672]
[1734852572478,6.4171,183.3,183.25,11.28810672]
[1734852573471,6.4171,183.3,183.24,11.28810672]
[1734852574479,6.4171,183.3,183.25,11.28810672]
[1734852577187,20.0,183.32,183.26,23.776884]
[1734852577364,20.0,183.32,183.26,35.06499072]
[1734852578960,7.04118641,183.35,183.28,11.28810672]
[1734852580087,8.47028155,183.37,183.31,11.28810672]
[1734852580294,0.82198641,183.38,183.31,11.28810672]
[1734852580664,15.54137055,183.39,183.35,11.28810672]
[1734852580874,9.17937055,183.39,183.35,11.28810672]
[1734852581271,0.709089,183.39,183.36,11.28810672]
[1734852581570,0.709089,183.39,183.37,11.28810672]
[1734852582385,0.709089,183.39,183.38,35.88283006]
[1734852585192,9.29226796,183.52,183.42,20.0]
[1734852585365,8.47028155,183.52,183.48,11.28810672]
[1734852585891,8.47028155,183.52,183.47,11.28810672]
[1734852586192,9.29226796,183.52,183.46,11.28810672]
[1734852586577,20.0,183.51,183.43,11.28810672]
[1734852586777,0.82198641,183.5,183.43,11.28810672]
[1734852588076,0.82198641,183.5,183.42,11.28810672]
[1734852588675,0.82198641,183.5,183.43,11.28810672]
[1734852599274,0.82198641,183.5,183.42,11.28810672]
[1734852599593,0.82198641,183.5,183.43,11.28810672]
[1734852602801,20.0,183.51,183.45,11.28810672]
[1734852603297,20.0,183.51,183.46,11.28810672]
[1734852603603,0.82198641,183.53,183.46,11.28810672]
[1734852603982,0.82198641,183.58,183.47,0.81741899]
[1734852604176,1.53107541,183.57,183.48,35.06499072]
[1734852604376,1.53107541,183.57,183.48,23.776884]
[1734852604803,1.53107541,183.57,183.48,35.06499072]
[1734852605203,20.0,183.56,183.48,35.06499072]
[1734852605376,0.82198641,183.55,183.48,35.06499072]
[1734852605577,0.709089,183.57,183.51,35.06499072]
[1734852605976,0.709089,183.57,183.51,23.776884]
[1734852606192,0.709089,183.57,183.51,35.06499072]
[1734852607103,0.709089,183.57,183.52,11.28810672]
[1734852607286,0.709089,183.57,183.53,23.776884]
[1734852607987,0.709089,183.57,183.52,23.776884]
[1734852608982,0.709089,183.57,183.46,7.7222]
[1734852609174,0.709089,183.57,183.49,11.28810672]
[1734852611988,0.709089,183.57,183.48,11.28810672]
[1734852612205,7.007289,183.57,183.47,23.776884]
[1734852612507,0.82198641,183.56,183.48,11.28810672]
[1734852613708,7.007289,183.57,183.49,11.28810672]
[1734852613916,7.007289,183.57,183.5,11.28810672]
[1734852614213,7.007289,183.57,183.49,11.28810672]
[1734852614387,7.007289,183.57,183.5,11.28810672]
[1734852616408,7.007289,183.57,183.51,11.28810672]
[1734852617810,0.709089,183.57,183.52,35.06499072]
[1734852619120,0.709089,183.57,183.52,23.776884]
[1734852619328,0.709089,183.57,183.49,0.8171106]
[1734852619496,20.709089,183.57,183.48,23.776884]
[1734852619825,0.82198641,183.56,183.5,23.776884]
[1734852620195,20.709089,183.57,183.5,23.776884]
[1734852620603,20.709089,183.57,183.5,35.06499072]
[1734852623025,20.709089,183.57,183.5,23.776884]
[1734852623231,20.709089,183.57,183.5,35.06499072]
[1734852626216,20.709089,183.57,183.5,23.776884]
[1734852626630,20.709089,183.57,183.5,35.06499072]
[1734852626820,20.709089,183.57,183.49,11.28810672]
[1734852627024,0.82198641,183.56,183.48,35.06499072]
[1734852627335,0.82198641,183.56,183.49,11.28810672]
[1734852628928,0.82198641,183.56,183.48,11.28810672]
[1734852629624,0.82198641,183.56,183.49,11.28810672]
[1734852632628,20.0,183.52,183.44,11.28810672]
[1734852632834,0.82198641,183.51,183.44,11.28810672]
[1734852633326,0.82198641,183.51,183.45,11.28810672]
[1734852633933,0.82198641,183.51,183.41,2.35304425]
[1734852634114,0.82198641,183.51,183.44,11.28810672]
[1734852635633,20.0,183.52,183.46,11.28810672]
[1734852635811,0.709089,183.57,183.51,11.28810672]
[1734852635812,1.53107541,183.57,183.51,11.28810672]
[1734852636019,0.709089,183.57,183.54,11.28810672]
[1734852636749,0.709089,183.57,183.55,11.28810672]
[1734852637432,0.709089,183.57,183.56,37.47224891]
[1734852640931,0.709089,183.57,183.56,36.65529072]
[1734852641710,0.709089,183.57,183.56,12.87840672]
[1734852642013,0.709089,183.57,183.54,11.28810672]
[1734852642416,0.709089,183.57,183.55,11.28810672]
[1734852643912,0.709089,183.57,183.53,35.06499072]
[1734852644329,0.709089,183.57,183.54,11.28810672]
[1734852646229,0.709089,183.57,183.53,35.06499072]
[1734852646407,0.709089,183.57,183.52,11.28810672]
[1734852646608,0.709089,183.57,183.46,1.5338]
[1734852646921,0.709089,183.57,183.47,11.28810672]
[1734852647315,0.709089,183.57,183.48,11.28810672]
[1734852647837,0.709089,183.57,183.49,11.28810672]
[1734852648006,0.709089,183.57,183.48,17.97654787]
[1734852648214,0.709089,183.57,183.48,41.75343187]
[1734852648813,20.0,183.54,183.46,19.51034787]
[1734852649019,20.0,183.54,183.43,7.23992367]
[1734852649020,0.82198641,183.53,183.45,17.97654787]
[1734852649236,0.82198641,183.53,183.46,17.97654787]
[1734852650730,0.82198641,183.53,183.47,41.75343187]
[1734852650934,0.82198641,183.56,183.49,17.97654787]
[1734852651163,20.0,183.54,183.47,41.75343187]
[1734852651337,0.82198641,183.53,183.46,17.97654787]
[1734852652038,0.82198641,183.53,183.45,17.97654787]
[1734852653639,0.82198641,183.53,183.44,24.59436769]
[1734852653938,0.82198641,183.53,183.43,23.776884]
[1734852654244,0.82198641,183.53,183.43,17.97654787]
[1734852655035,0.82198641,183.53,183.42,2.35127492]
[1734852655243,0.82198641,183.53,183.43,17.97654787]
[1734852655617,0.82198641,183.53,183.46,17.97654787]
[1734852655837,0.82198641,183.53,183.45,17.97654787]
[1734852657344,0.82198641,183.53,183.44,17.97654787]
[1734852657944,0.82198641,183.53,183.45,17.97654787]
[1734852660451,0.82198641,183.53,183.46,17.97654787]
[1734852662752,0.82198641,183.53,183.45,17.97654787]
[1734852664532,0.82198641,183.53,183.44,17.97654787]
[1734852664732,0.82198641,183.53,183.45,23.776884]
[1734852664927,0.82198641,183.53,183.45,41.75343187]
[1734852665238,0.82198641,183.53,183.42,1.5338]
[1734852665737,0.82198641,183.53,183.35,37.09169918]
[1734852665738,20.0,183.49,183.36,1.5398]
[1734852666057,0.82198641,183.48,183.37,17.97654787]
[1734852666352,0.82198641,183.48,183.36,1.5398]
[1734852666527,0.82198641,183.48,183.38,17.97654787]
[1734852668374,0.82198641,183.48,183.39,17.97654787]
[1734852668566,0.82198641,183.48,183.4,17.97654787]
[1734852669243,0.82198641,183.48,183.42,17.97654787]
[1734852669443,0.82198641,183.51,183.42,17.97654787]
[1734852670079,0.82198641,183.51,183.41,35.02082651]
[1734852670440,20.0,183.49,183.43,23.776884]
[1734852670674,0.82198641,183.48,183.42,11.24394251]
[1734852671178,20.0,183.49,183.42,11.24394251]
[1734852672173,0.82198641,183.48,183.42,11.24394251]
[1734852672473,20.0,183.49,183.42,11.24394251]
[1734852672865,6.1219,183.52,183.44,11.24394251]
[1734852673065,0.82198641,183.56,183.47,23.776884]
[1734852673246,0.82198641,183.56,183.47,35.02082651]
[1734852673452,0.82198641,183.56,183.48,11.24394251]
[1734852673781,0.82198641,183.56,183.47,35.83814382]
[1734852674086,0.82198641,183.56,183.47,42.57249009]
[1734852674578,0.82198641,183.56,183.48,17.97828878]
[1734852675287,0.82198641,183.56,183.49,17.97828878]
[1734852675575,0.82198641,183.56,183.48,17.97828878]
[1734852675942,0.82198641,183.56,183.47,42.57249009]
[1734852677074,0.82198641,183.56,183.47,41.75517278]
[1734852678261,0.82198641,183.56,183.46,41.75517278]
[1734852679163,0.82198641,183.56,183.47,17.97828878]
[1734852679564,0.82198641,183.56,183.46,41.75517278]
[1734852683578,6.824789,183.57,183.5,23.776884]
[1734852683873,6.824789,183.57,183.5,42.57233934]
[1734852684074,6.824789,183.57,183.5,41.75517278]
[1734852684280,0.82198641,183.56,183.49,23.776884]
[1734852684867,0.82198641,183.56,183.47,23.776884]
[1734852687684,0.82198641,183.56,183.46,17.97828878]
[1734852687887,20.0,183.54,183.46,17.97828878]
[1734852688069,0.82198641,183.53,183.46,17.97828878]
[1734852688582,20.0,183.54,183.46,17.97828878]
[1734852689188,0.82198641,183.53,183.46,17.97828878]
[1734852691279,0.709089,183.57,183.52,17.97828878]
[1734852691585,0.709089,183.57,183.55,17.97828878]
[1734852692084,0.709089,183.57,183.56,24.59388225]
[1734852694301,0.709089,183.57,183.56,42.57217103]
[1734852695181,0.709089,183.57,183.56,42.69766103]
[1734852695481,8.9e-05,183.57,183.56,42.69766103]
[1734852695783,8.9e-05,183.57,183.56,44.22796103]
[1734852696790,7.21438641,183.71,183.6,20.12549]
[1734852696791,6.3924,183.71,183.6,20.12549]
[1734852696989,6.3924,183.71,183.62,23.776884]
[1734852697297,6.3924,183.71,183.62,41.75517278]
[1734852697460,6.3924,183.71,183.64,41.75517278]
[1734852697660,6.3924,183.75,183.64,41.75517278]
[1734852697885,6.3924,183.75,183.66,23.776884]
[1734852697886,0.82198641,183.74,183.66,23.776884]
[1734852698266,0.82198641,183.74,183.66,41.75517278]
[1734852698988,0.82198641,183.74,183.66,42.57164059]
[1734852700199,0.82198641,183.74,183.66,24.59335181]
[1734852701402,0.709089,183.76,183.7,17.97828878]
[1734852701600,0.709089,183.76,183.71,23.776884]
[1734852702299,0.709089,183.76,183.66,0.81627353]
[1734852702483,0.709089,183.76,183.68,23.776884]
[1734852702681,0.709089,183.76,183.67,23.776884]
[1734852703794,0.82198641,183.75,183.64,39.61028878]
[1734852704603,0.82198641,183.75,183.65,17.97828878]
[1734852705007,0.709089,183.76,183.68,23.776884]
[1734852705217,0.709089,183.76,183.72,17.97828878]
[1734852705518,0.709089,183.76,183.75,41.75517278]
[1734852707603,0.709089,183.76,183.75,41.88066278]
[1734852710813,0.709089,183.76,183.75,41.75517278]
[1734852711514,0.709089,183.76,183.75,41.88066278]
[1734852712114,8.9e-05,183.76,183.75,41.88066278]
[1734852713417,8.9e-05,183.76,183.75,23.902374]
[1734852713592,8.9e-05,183.76,183.75,41.88066278]
[1734852715318,8.9e-05,183.76,183.75,41.75517278]
[1734852722919,8.9e-05,183.76,183.75,23.776884]
[1734852723127,8.9e-05,183.76,183.71,16.00449822]
[1734852723298,8.9e-05,183.76,183.68,18.79450166]
[1734852723498,8.9e-05,183.76,183.67,17.97828878]
[1734852724801,8.9e-05,183.76,183.68,37.97828878]
[1734852725228,20.000089,183.76,183.66,19.51138878]
[1734852725426,0.82198641,183.75,183.65,17.97828878]
[1734852725725,0.82198641,183.75,183.61,15.1482]
[1734852725726,0.82198641,183.75,183.62,17.97828878]
[1734852725894,20.0,183.7,183.61,17.97828878]
[1734852726097,0.82198641,183.69,183.59,17.97828878]
[1734852726330,0.82198641,183.69,183.58,17.97828878]
[1734852726697,0.82198641,183.69,183.55,17.97828878]
[1734852727305,23.776884,183.68,183.55,17.97828878]
[1734852727520,20.0,183.65,183.55,17.97828878]
[1734852727721,0.82198641,183.64,183.55,17.97828878]
[1734852727927,20.0,183.66,183.56,17.97828878]
[1734852728128,0.82198641,183.65,183.59,17.97828878]
[1734852728414,0.82198641,183.69,183.59,17.97828878]
[1734852728919,0.82198641,183.69,183.58,17.97828878]
[1734852735630,0.82198641,183.69,183.57,41.75517278]
[1734852735940,20.0,183.65,183.55,17.97828878]
[1734852736242,20.0,183.65,183.54,17.97828878]
[1734852736243,0.82198641,183.64,183.54,17.97828878]
[1734852736737,6.5064,183.59,183.5,17.97828878]
[1734852736913,0.82198641,183.58,183.5,17.97828878]
[1734852737536,0.82198641,183.58,183.51,17.97828878]